Organisation Name,Organisation Code,Organisational Unit,Service Category Label,Procurement Category,Supplier Name,Supplier Other ID,Payment Date,Transaction Number,Amount (�),Purpose
Eden District Council,http://opendatacommunities.org/id/district-council/eden,Environmental Services,1996 Mandatory Renovation Grants,Capital grants,HANDICARE ACCESSIBILITY LTD,FRE002,06/08/2021,197063,1765,GRANT REF 210019 FIN PAYMENT
Eden District Council,http://opendatacommunities.org/id/district-council/eden,Environmental Services,1996 Mandatory Renovation Grants,Capital grants,DOLPHIN MOBILITY YORKSHIRE & CUMBRIA LTD,DOL001,06/08/2021,197065,5025,FIN PAYMENT GRANT REF 210003
Eden District Council,http://opendatacommunities.org/id/district-council/eden,Technical Services Manager,Parks and Open Spaces,Planned Maintenance,CELSIUS ENGINEERING SERVICES,CEL001,06/08/2021,197107,544.13,SUPPLY/INSTALL BATTERY BACK UP
Eden District Council,http://opendatacommunities.org/id/district-council/eden,Legal Services Manager,Licensing,Software � maintenance,IDOX SOFTWARE LIMITED,IDO003,06/08/2021,197111,10061.56,LALPAC CLASSIC ANNUAL CHARGE
Eden District Council,http://opendatacommunities.org/id/district-council/eden,Legal Services Manager,Committee and Member Costs,Equipment hire,SOUNDSMITH LIMITED,SOU021,06/08/2021,197125,3200,HIRE OF EQUIPMENT 20.5.21 & 27.5.21
Eden District Council,http://opendatacommunities.org/id/district-council/eden,Legal Services Manager,Committee and Member Costs,Equipment hire,SOUNDSMITH LIMITED,SOU021,06/08/2021,197126,1000,HIRE OF EQUIPMENT  07.07.21
Eden District Council,http://opendatacommunities.org/id/district-council/eden,Information Technology Manager,Information Technology,Computer equipment,THE NETWORKING PEOPLE (NORTHWEST) LIMITED,TNP001,06/08/2021,196502,975,tnp prof services june 21
Eden District Council,http://opendatacommunities.org/id/district-council/eden,Environmental Services,1996 Mandatory Renovation Grants,Capital grants,PPM LTD,PPM001,06/08/2021,196953,5734.5,GRANT REF 20062 FIN PAYMENT
Eden District Council,http://opendatacommunities.org/id/district-council/eden,Environmental Services,1996 Mandatory Renovation Grants,Capital grants,PPM LTD,PPM001,06/08/2021,196956,15283.7,GRANT REF 200007 FIN PAYMENT
Eden District Council,http://opendatacommunities.org/id/district-council/eden,Environmental Services,1996 Mandatory Renovation Grants,Capital grants,PPM LTD,PPM001,06/08/2021,196957,4420,GRANT REF 200045 FIN PAYMENT
Eden District Council,http://opendatacommunities.org/id/district-council/eden,Corporate Services Director,Director of Corporate Services,Agency Staff,CIPFA PENNA,CIP013,06/08/2021,196971,15840,INTERIM MANAGEMENT JUNE 21 PS
Eden District Council,http://opendatacommunities.org/id/district-council/eden,Information Technology Manager,Information Technology,Government Connect,NOMINET,NOM001,06/08/2021,196977,765.94,DNS SERVICES Q2 MAY21-JUL21
Eden District Council,http://opendatacommunities.org/id/district-council/eden,Technical Services Manager,Cemeteries,GM External Contractors,URBASER LIMITED,URB002,06/08/2021,196418,3859.34,AD HoC WORKS MAR 21
Eden District Council,http://opendatacommunities.org/id/district-council/eden,Environmental Services,Community Wardens,Dog Contract O.O.H retainer,URBASER LIMITED,URB002,06/08/2021,196976,970.81,STRAY DOG JULY21
Eden District Council,http://opendatacommunities.org/id/district-council/eden,Technical Services Manager,Recycling,Other charges for services,CUMBRIA COUNTY COUNCIL,CCC002,06/08/2021,196994,7361,PARTNERSHIP DEV OFFCIER 21/22
Eden District Council,http://opendatacommunities.org/id/district-council/eden,Technical Services Manager,Administrative Buildings,Electricity,NPOWER LTD,NPO001,06/08/2021,197006,1200.39,town hall
Eden District Council,http://opendatacommunities.org/id/district-council/eden,Technical Services Manager,Administrative Buildings,Electricity,NPOWER LTD,NPO001,06/08/2021,197020,543.36,MH 1.6.21-30.6.21
Eden District Council,http://opendatacommunities.org/id/district-council/eden,Information Technology Manager,Information Technology,Printers Contract,XEROX FINANCE,XER003,06/08/2021,197021,975,kip860 24.8.21-23.11.21
Eden District Council,http://opendatacommunities.org/id/district-council/eden,Technical Services Manager,Street Cleaning,Street Cleaning Contract,URBASER LIMITED,URB002,06/08/2021,197066,2155.41,CERT SC93 AD HOC WORKS MAY 21
Eden District Council,http://opendatacommunities.org/id/district-council/eden,Technical Services Manager,Refuse Collection,Refuse Contract Dayworks,URBASER LIMITED,URB002,06/08/2021,197067,1745.2,CERT RC103 AD HOC WORKS MAY 21
Eden District Council,http://opendatacommunities.org/id/district-council/eden,Technical Services Manager,Recycling,Recycling - Bag & Box,CUMBRIA WASTE RECYCLING LTD,CUM022,06/08/2021,197068,6976.33,CERT F-10A-19/20
Eden District Council,http://opendatacommunities.org/id/district-council/eden,Technical Services Manager,Recycling,material price fluctuations,CUMBRIA WASTE RECYCLING LTD,CUM022,06/08/2021,197069,4877.35,CERT F-19- 2020/21
Eden District Council,http://opendatacommunities.org/id/district-council/eden,Technical Services Manager,Recycling,Em Wks Storage,URBASER LIMITED,URB002,06/08/2021,197072,552.37,CERT M-m&EW 112/2021
Eden District Council,http://opendatacommunities.org/id/district-council/eden,Technical Services Manager,Footway Lighting,FL  Contract,URBASER LIMITED,URB002,06/08/2021,197105,2736.77,FOOTWAY LIGHTING JULY21
Eden District Council,http://opendatacommunities.org/id/district-council/eden,Environmental Services,Homelessness,Rent,HEART OF CUMBRIA LTD,HEA029,06/08/2021,197106,2880,RENT 63/67 PRIMROSE DRIVE
Eden District Council,http://opendatacommunities.org/id/district-council/eden,Commercial Services Manager,Commercial Services,Agency Staff,VIVID RESOURCING,VIV001,06/08/2021,197118,4375,TIME SHEET WE 25.07.21
Eden District Council,http://opendatacommunities.org/id/district-council/eden,Technical Services Manager,Arts and Leisure,Grants and contributions,CUMBRIA OPERA GROUP,CUM133,06/08/2021,197129,1000,GRANT - CUMBRIA OPERA GROUP FESTIVAL
Eden District Council,http://opendatacommunities.org/id/district-council/eden,Financial Services Manager,Emergency Planning and Works,Grants and contributions,Bare Necessities,40212665,02/08/2021,197201,8000,COVID 19 SMALL BUSINESS GRANT
Eden District Council,http://opendatacommunities.org/id/district-council/eden,Environmental Services,Home Improvement Agency,GHG-Discreationary Top UP Grants,E.ON ENERGY SOLUTIONS LTD,EON002,13/08/2021,197119,1239,GREEN HOMES GRANT DUNFELL
Eden District Council,http://opendatacommunities.org/id/district-council/eden,Environmental Services,Home Improvement Agency,GHG-Discreationary Top UP Grants,E.ON ENERGY SOLUTIONS LTD,EON002,13/08/2021,197120,2711,GREEN HOMES GRANT NEWTON RIGG
Eden District Council,http://opendatacommunities.org/id/district-council/eden,Environmental Services,Home Improvement Agency,GHG-Discreationary Top UP Grants,E.ON ENERGY SOLUTIONS LTD,EON002,13/08/2021,197121,2896,GREEN HOMES GRANT MELMERBY
Eden District Council,http://opendatacommunities.org/id/district-council/eden,Environmental Services,Home Improvement Agency,GHG-Discreationary Top UP Grants,E.ON ENERGY SOLUTIONS LTD,EON002,13/08/2021,197122,4000,GREEN HOMES GRANT ALSTON
Eden District Council,http://opendatacommunities.org/id/district-council/eden,Environmental Services,Home Improvement Agency,GHG-Discreationary Top UP Grants,E.ON ENERGY SOLUTIONS LTD,EON002,13/08/2021,197128,4000,GREEN HOMES GRANT PENRITH
Eden District Council,http://opendatacommunities.org/id/district-council/eden,Technical Services Manager,Eden Leisure Centre & Appleby Swimming P,Building Maintenance - Leisure,DYNAMIC JOINERY LTD,DYN004,13/08/2021,197155,1315,REPLACE 15 TOILET SEATS
Eden District Council,http://opendatacommunities.org/id/district-council/eden,Information Technology Manager,Information Technology,IT Contracts & Maintenance,BROLLY ASSOCIATES LTD,BRO060,13/08/2021,197158,12150,PROJECT MANAGEMENT 19.3.21-16.07.21
Eden District Council,http://opendatacommunities.org/id/district-council/eden,Information Technology Manager,Repairs & Renewals Fund,Equipment � purchase,PROBRAND *CCS*,PRO013,13/08/2021,197170,52118.96,DELL LATITUDE
Eden District Council,http://opendatacommunities.org/id/district-council/eden,Commercial Services Manager,Tourism Promotion,Marketing,YORKSHIRE DALES NATIONAL PARK AUTHORITY,YOR003,13/08/2021,197174,2000,LPS PARTNER CONT 2021-22
Eden District Council,http://opendatacommunities.org/id/district-council/eden,Environmental Services,Homelessness,Professional fees,DAY CUMMINS LTD,DAY002,13/08/2021,196958,600,PRO SERVICES NEWBIGGIN
Eden District Council,http://opendatacommunities.org/id/district-council/eden,Technical Services Manager,Parks and Open Spaces,GM External Contractors,THE PLAY INSPECTION COMPANY LIMITED,PLA013,13/08/2021,197130,600,OUTDOOR ANNUAL INSPECTION
Eden District Council,http://opendatacommunities.org/id/district-council/eden,Commercial Services Manager,Tourism Promotion,Grants and contributions,CUMBRIA TOURISM,CUM066,13/08/2021,196625,2945,STEAM REPORT 2020
Eden District Council,http://opendatacommunities.org/id/district-council/eden,Financial Services Manager,Financial Services,Internal Audit,TIAA LTD,TIA001,13/08/2021,196973,1300,20/21 ANNUAL REPORT
Eden District Council,http://opendatacommunities.org/id/district-council/eden,Legal Services Manager,Land Management,Valuation fees,WALTON GOODLAND LTD,WAL008,13/08/2021,196974,1125,COST ASSESSMENT CARLETON MEADOWS
Eden District Council,http://opendatacommunities.org/id/district-council/eden,Revenue/Benefits Manager,Revenue & Benefits,Redundancy Voluntary,CUMBRIA COUNTY COUNCIL LGPS,CUM095,13/08/2021,197124,86088.38,REDUNDANCY/ RETIREMENT
Eden District Council,http://opendatacommunities.org/id/district-council/eden,Financial Services Manager,Heart of Cumbria,Miscellaneous,DYNAMIC JOINERY LTD,DYN004,13/08/2021,197133,870,EASE FIRE DOORS
Eden District Council,http://opendatacommunities.org/id/district-council/eden,Technical Services Manager,Recycling,Recycling - Bag & Box,CUMBRIA WASTE RECYCLING LTD,CUM022,13/08/2021,197143,31161.39,CERT GB-26-2021/22
Eden District Council,http://opendatacommunities.org/id/district-council/eden,Technical Services Manager,Recycling,Recycling - Bag & Box,CUMBRIA WASTE RECYCLING LTD,CUM022,13/08/2021,197144,30550.55,CERT GB-25-2021/22
Eden District Council,http://opendatacommunities.org/id/district-council/eden,Technical Services Manager,Recycling,Recycling - Bag & Box,CUMBRIA WASTE RECYCLING LTD,CUM022,13/08/2021,197145,31161.39,CERT GB-27-2021/22
Eden District Council,http://opendatacommunities.org/id/district-council/eden,Technical Services Manager,Recycling,Recycling  - Bring Sites,CUMBRIA WASTE RECYCLING LTD,CUM022,13/08/2021,197146,7592.3,CERT BS-105
Eden District Council,http://opendatacommunities.org/id/district-council/eden,Technical Services Manager,Recycling,Recycling  - Bring Sites,CUMBRIA WASTE RECYCLING LTD,CUM022,13/08/2021,197147,7742.51,CERT BS-104
Eden District Council,http://opendatacommunities.org/id/district-council/eden,Technical Services Manager,Recycling,Recycling  - Bring Sites,CUMBRIA WASTE RECYCLING LTD,CUM022,13/08/2021,197149,7592.3,CERT BS-106
Eden District Council,http://opendatacommunities.org/id/district-council/eden,Planning Services Manager (BC),Building Regulations,Subscriptions & levies,IHS (GLOBAL) LTD,IHS001,13/08/2021,197156,2975,CIS CORE ONLINE
Eden District Council,http://opendatacommunities.org/id/district-council/eden,Technical Services Manager,Eden Leisure Centre & Appleby Swimming P, Adhoc Works,REDACTED INFORMATION,SCH002,13/08/2021,197161,750,WATER PITCH KING GEORGE APPLEBY
Eden District Council,http://opendatacommunities.org/id/district-council/eden,Environmental Services,Appleby Fair,Street Cleaning Contract,URBASER LIMITED,URB002,13/08/2021,197172,19004.92,CERTM-SC112
Eden District Council,http://opendatacommunities.org/id/district-council/eden,Technical Services Manager,Refuse Collection,Contract refuse collection,URBASER LIMITED,URB002,13/08/2021,197173,75733.44,CERT M-RC112
Eden District Council,http://opendatacommunities.org/id/district-council/eden,Chief Executive's,One Eden Programme,Agency Staff,MBSP CONSULTANCY LTD,MBS001,13/08/2021,197177,7200,ONE EDEN SUPPORT JULY21
Eden District Council,http://opendatacommunities.org/id/district-council/eden,Technical Services Manager,Recycling,material price fluctuations,CUMBRIA WASTE RECYCLING LTD,CUM022,13/08/2021,197191,1775.48,CERT F-27-2021/22
Eden District Council,http://opendatacommunities.org/id/district-council/eden,Technical Services Manager,Recycling,material price fluctuations,CUMBRIA WASTE RECYCLING LTD,CUM022,13/08/2021,197192,1686,CERT F-26-2021/22
Eden District Council,http://opendatacommunities.org/id/district-council/eden,Technical Services Manager,Recycling,material price fluctuations,CUMBRIA WASTE RECYCLING LTD,CUM022,13/08/2021,197193,697.14,CERT F-25-2021/22
Eden District Council,http://opendatacommunities.org/id/district-council/eden,Technical Services Manager,Recycling,material price fluctuations,CUMBRIA WASTE RECYCLING LTD,CUM022,13/08/2021,197194,1893.94,CERT F-25-2021/22
Eden District Council,http://opendatacommunities.org/id/district-council/eden,Technical Services Manager,Recycling,material price fluctuations,CUMBRIA WASTE RECYCLING LTD,CUM022,13/08/2021,197195,2632.16,CERT BS-F-83-2021/22
Eden District Council,http://opendatacommunities.org/id/district-council/eden,Technical Services Manager,Recycling,material price fluctuations,CUMBRIA WASTE RECYCLING LTD,CUM022,13/08/2021,197196,2619.03,CERT BS-F-82-2021/22
Eden District Council,http://opendatacommunities.org/id/district-council/eden,Technical Services Manager,Recycling,material price fluctuations,CUMBRIA WASTE RECYCLING LTD,CUM022,13/08/2021,197197,2907.37,CERT BS-F-81-2021/22
Eden District Council,http://opendatacommunities.org/id/district-council/eden,Technical Services Manager,Recycling,VRC Payments,APPLEBY TOWN COUNCIL,APP001,13/08/2021,197233,700,Broad close recycling mar-aug 21
Eden District Council,http://opendatacommunities.org/id/district-council/eden,Financial Services Manager,Emergency Planning and Works,Grants and contributions,Shine Music Studio,40248015,10/08/2021,197270,4000,COVID 19 SMALL BUSINESS GRANT
Eden District Council,http://opendatacommunities.org/id/district-council/eden,Financial Services Manager,Emergency Planning and Works,Grants and contributions,Lake District Farmers Limited,40220055,10/08/2021,197271,6000,COVID 19 SMALL BUSINESS GRANT
Eden District Council,http://opendatacommunities.org/id/district-council/eden,Financial Services Manager,Emergency Planning and Works,Grants and contributions,THE RATE PAYER,40245788,10/08/2021,197272,4000,COVID 19 SMALL BUSINESS GRANT
Eden District Council,http://opendatacommunities.org/id/district-council/eden,Financial Services Manager,Emergency Planning and Works,Grants and contributions,THE RATE PAYER,42006177,10/08/2021,197273,2000,COVID 19 SMALL BUSINESS GRANT
Eden District Council,http://opendatacommunities.org/id/district-council/eden,Financial Services Manager,Emergency Planning and Works,Grants and contributions,THE RATE PAYER,42006178,10/08/2021,197274,2000,COVID 19 SMALL BUSINESS GRANT
Eden District Council,http://opendatacommunities.org/id/district-council/eden,Financial Services Manager,Emergency Planning and Works,Grants and contributions,Helm Wind Tours,42006179,10/08/2021,197275,1000,COVID 19 SMALL BUSINESS GRANT
Eden District Council,http://opendatacommunities.org/id/district-council/eden,Technical Services Manager,Provision of Ameneties,"Badges, plates, signs",HEATONS GROUP LTD,LAK004,20/08/2021,197179,724.07,STATIONERY / PAPER / SIGNS
Eden District Council,http://opendatacommunities.org/id/district-council/eden,Environmental Services,1996 Mandatory Renovation Grants,Capital grants,MICHAEL THOMPSON (PWCE) LTD,MIC011,20/08/2021,197188,12000,INT PAYMENT GRANT REF 200040
Eden District Council,http://opendatacommunities.org/id/district-council/eden,Technical Services Manager,Vehicle Parking Off Street,Cash collection,CARLISLE CITY COUNCIL,CAR015,20/08/2021,197166,3066,OFF ST CASH COLLECTIONS 1.4.21-30.6.21
Eden District Council,http://opendatacommunities.org/id/district-council/eden,Revenue/Benefits Manager,Financial Services,Contribution by EDC,PENRITH INDUSTRIAL BID COMPANY LTD,PEN087,20/08/2021,197198,40000,MONIES COLLECTEDTO PRESENT
Eden District Council,http://opendatacommunities.org/id/district-council/eden,Legal Services Manager,Legal Services,Professional fees,BEVAN BRITTAN LLP,BEV002,20/08/2021,197200,1969,PROF CHARGES 13.5.21-27.5.21
Eden District Council,http://opendatacommunities.org/id/district-council/eden,Financial Services Manager,Insurance,Insurance,MARSH LTD,MAR046,20/08/2021,197234,1282.6,personal accident 31.01.21 - 30.01.22
Eden District Council,http://opendatacommunities.org/id/district-council/eden,Planning Policy Manager,Local Plans & Policy,Grants and contributions,TULLIE HOUSE MUSEUM AND ART GALLAERY TRUST,TUL002,27/08/2021,197293,3853,DATASET USE 21/22 CUMBRIA BIODIVERSITY
Eden District Council,http://opendatacommunities.org/id/district-council/eden,Legal Services Manager,Register of Electors,Postages,PRINT IMAGE FACILITIES LLP,PRI014,27/08/2021,197311,10234.51,EDC CANVASS POSTAGE
Eden District Council,http://opendatacommunities.org/id/district-council/eden,Environmental Services,1996 Mandatory Renovation Grants,Capital grants,KJS ACCESS SOLUTIONS,KJS001,27/08/2021,197327,3388.52,INTERIM PAYMENT GRANT REF 190069
Eden District Council,http://opendatacommunities.org/id/district-council/eden,Environmental Services,1996 Mandatory Renovation Grants,Capital grants,HANDICARE ACCESSIBILITY LTD,FRE002,27/08/2021,197342,3710,FIN PAYMENT GRANT REF 210018
Eden District Council,http://opendatacommunities.org/id/district-council/eden,Planning Services,Development Control & Enforcement,Professional fees,SUMMIT TOWN PLANNING LTD,SUM004,27/08/2021,197343,1640.85,15 PLANNING APPS /SITE VISITS
Eden District Council,http://opendatacommunities.org/id/district-council/eden,Technical Services Manager,Emergency Planning and Works,Grounds Maint Contract additional works,URBASER LIMITED,URB002,27/08/2021,197344,5208.54,frenchfield grounds main
Eden District Council,http://opendatacommunities.org/id/district-council/eden,Environmental Services,Appleby Fair,Toilet Provision,BORDER GROUP LTD,BOR003,27/08/2021,197379,7540,HIRE CHARGES12.8.21-18.8.21
Eden District Council,http://opendatacommunities.org/id/district-council/eden,Legal Services Manager,Committee and Member Costs,Equipment hire,SOUNDSMITH LIMITED,SOU021,27/08/2021,197383,1200,SOUND EQUIP 15.7.21
Eden District Council,http://opendatacommunities.org/id/district-council/eden,Legal Services Manager,Committee and Member Costs,Equipment hire,SOUNDSMITH LIMITED,SOU021,27/08/2021,197384,1800,sound equip 29.07.21
Eden District Council,http://opendatacommunities.org/id/district-council/eden,Commercial Services Manager,Tourism Promotion,Distribution,LIFESTYLE MEDIA GROUP LTD,CAT003,27/08/2021,197308,621.24,BROCHURES 12.7.21-08.8.21
Eden District Council,http://opendatacommunities.org/id/district-council/eden,Commercial Services Manager,Town Centres,Grants and contributions,ALSTON MOOR BUSINESS ASSOCIATION,ALS027,27/08/2021,197328,5000,WELCOME BACK TO EDEN GRANT
Eden District Council,http://opendatacommunities.org/id/district-council/eden,Commercial Services Manager,Town Centres,Grants and contributions,BROUGH MEMORIAL HALL,BRO012,27/08/2021,197330,1500,WELCOME BACK TO EDEN GRANT
Eden District Council,http://opendatacommunities.org/id/district-council/eden,Commercial Services Manager,Community Development & Engagement,Community Fund,DUFTON VILLAGE HALL,DUF002,27/08/2021,197337,2500,2ND EDEN COMMUNITY GRANT
Eden District Council,http://opendatacommunities.org/id/district-council/eden,Human Resources Manager,Central Expenses,Relocation expenses,REDACTED INFORMATION,CLE015,27/08/2021,197341,2600,EXPENSES
Eden District Council,http://opendatacommunities.org/id/district-council/eden,Chief Executive's,Chief Executive,Agency Staff,CARLISLE CITY COUNCIL,CAR015,27/08/2021,197348,4000,SHARED CEO JULY 21
Eden District Council,http://opendatacommunities.org/id/district-council/eden,Commercial Services Manager,Town Centres,Grants and contributions,APPLEBY TOWN COUNCIL,APP001,27/08/2021,197359,5000,WELCOME BACK TO EDEN GRANT
Eden District Council,http://opendatacommunities.org/id/district-council/eden,Environmental Services,Appleby Fair,Transit Sites,EDEN RECYCLING,EDE025,27/08/2021,197376,800,TIP IN YARDS
Eden District Council,http://opendatacommunities.org/id/district-council/eden,Commercial Services Manager,Tourism Promotion,Distribution,LIFESTYLE MEDIA GROUP LTD,CAT003,27/08/2021,197413,1987.92,BROCHURES 8.6.21-31.07.21
Eden District Council,http://opendatacommunities.org/id/district-council/eden,Technical Services Manager,Footway Lighting,Electricity,NPOWER LTD,NPO001,27/08/2021,197280,3375.28,MH ST LIGHTING
Eden District Council,http://opendatacommunities.org/id/district-council/eden,Commercial Services Manager,Town Centres,Grants and contributions,KIRKBY STEPHEN COMMUNITY SUPPORT ASSOC.,KIR051,27/08/2021,197360,5000,WELCOME BACK TO EDEN GRANT
Eden District Council,http://opendatacommunities.org/id/district-council/eden,Environmental Services,Pest Control,Pest Control,RENTOKIL INITIAL PEST CONTROL,REN009,27/08/2021,197288,1023.69,PESTS MISC 1.9.21-30.09.21
Eden District Council,http://opendatacommunities.org/id/district-council/eden,Revenue/Benefits Manager,Revenue & Benefits,Postages,ROYAL MAIL NW,ROY001,27/08/2021,197303,773.53,1ST AND 2ND CLASS MAIL
Eden District Council,http://opendatacommunities.org/id/district-council/eden,Commercial Services Manager,Town Centres,Grants and contributions,SHAP PARISH COUNCIL,SHA008,27/08/2021,197329,2274.27,WELCOME BACK TO EDEN GRANT
Eden District Council,http://opendatacommunities.org/id/district-council/eden,Commercial Services Manager,Town Centres,Grants and contributions,PENRITH B I D COMPANY LTD,PEN085,27/08/2021,197331,5000,WELCOME BACK TO EDEN GRANT
Eden District Council,http://opendatacommunities.org/id/district-council/eden,Technical Services Manager,Public Conveniences,Water testing,MITIE,REN007,27/08/2021,197352,549.43,services
Eden District Council,http://opendatacommunities.org/id/district-council/eden,Technical Services Manager,Cemeteries,ADHOC WORKS FOR BURIALS,AMEY PLC,TFE001,27/08/2021,197374,9326.29,GROUNDS MAIN
Eden District Council,http://opendatacommunities.org/id/district-council/eden,Revenue/Benefits Manager,Revenue & Benefits,Unique payments ****,REDACTED INFORMATION,ROB053,27/08/2021,197378,1665.42,REFUND COUNCIL TAX REDUCTION
Eden District Council,http://opendatacommunities.org/id/district-council/eden,Commercial Services Manager,Commercial Services,Agency Staff,VIVID RESOURCING,VIV001,27/08/2021,196991,1650,TIME SHEET WE 18.07.21  GM
Eden District Council,http://opendatacommunities.org/id/district-council/eden,Commercial Services Manager,Commercial Services,Agency Staff,VIVID RESOURCING,VIV001,27/08/2021,197117,880,TIME SHEET WE 25.07.21 GM
Eden District Council,http://opendatacommunities.org/id/district-council/eden,Commercial Services Manager,Commercial Services,Agency Staff,VIVID RESOURCING,VIV001,27/08/2021,197304,2750,TIME SHEET W/E 08.08.21  GM
Eden District Council,http://opendatacommunities.org/id/district-council/eden,Commercial Services Manager,Commercial Services,Agency Staff,VIVID RESOURCING,VIV001,27/08/2021,197305,1312.5,TIME SHEET WE 08.08.21  FM
Eden District Council,http://opendatacommunities.org/id/district-council/eden,Commercial Services Manager,Economic Development and Promotion,Professional fees,WALTON GOODLAND LTD,WAL008,27/08/2021,197312,5176.5,RATE FOR SURVEYOR
Eden District Council,http://opendatacommunities.org/id/district-council/eden,Commercial Services Manager,Commercial Services,Agency Staff,VIVID RESOURCING,VIV001,27/08/2021,197325,4375,TIME SHEET WE 01.8.21  FM
Eden District Council,http://opendatacommunities.org/id/district-council/eden,Commercial Services Manager,Commercial Services,Agency Staff,VIVID RESOURCING,VIV001,27/08/2021,197326,1210,TIME SHEET WE 01.8.21 GM
Eden District Council,http://opendatacommunities.org/id/district-council/eden,Commercial Services Manager,Town Centres,Grants and contributions,ULLSWATER ASSOCIATION,ULL006,27/08/2021,197338,1000,WELCOME BACK TO EDEN GRANT
Eden District Council,http://opendatacommunities.org/id/district-council/eden,Technical Services Manager,Public Conveniences,Window cleaning,URBASER LIMITED,URB002,27/08/2021,197372,13179.9,cert 2021/22_BC_05
Eden District Council,http://opendatacommunities.org/id/district-council/eden,Technical Services Manager,Administrative Buildings,Water charges � metered,URBASER LIMITED,URB002,27/08/2021,197373,2736.77,FOOTWAY LIGHTING AUG 21
Eden District Council,http://opendatacommunities.org/id/district-council/eden,Commercial Services Manager,Commercial Services,Agency Staff,VIVID RESOURCING,VIV001,27/08/2021,197380,2750,TIME SHEET WE 15.08.21 GM
Eden District Council,http://opendatacommunities.org/id/district-council/eden,Technical Services Manager,Administrative Buildings,Water charges � metered,WATER PLUS,UNI008,27/08/2021,197411,2874.55,MANSION HOUSE
Eden District Council,http://opendatacommunities.org/id/district-council/eden,Technical Services Manager,Cemeteries,Grounds Maint Contract additional works,IAN CANNON LTD,CAN004,27/08/2021,197278,1050,erect mesh fence penrith cemetery
Eden District Council,http://opendatacommunities.org/id/district-council/eden,Environmental Services,Other Environmental Health,Supplies general,WALKERS FUNERAL DIRECTORS,WAL005,03/09/2021,197295,1876,BURIAL FEES 
Eden District Council,http://opendatacommunities.org/id/district-council/eden,Human Resources Manager,Staff Development,Training Expenses,CIVICA UK LTD,CIV002,03/09/2021,197323,4865,APP SYSTEM ADMIN TRAINING
Eden District Council,http://opendatacommunities.org/id/district-council/eden,Technical Services Manager,Land Management,Building works,LANES GROUP PLC,LAN040,03/09/2021,197444,695,CCTV CRAWLER
Eden District Council,http://opendatacommunities.org/id/district-council/eden,Commercial Services Manager,Emergency Planning and Works,Professional fees,REDKITE INNOVATIONS LTD,RED012,03/09/2021,197507,8000,Q3 EDEN ASSIST
Eden District Council,http://opendatacommunities.org/id/district-council/eden,Corporate Services Manager,Corporate Services,Alston Info Centre Cleaning to Recharge,ALSTON TOWN HALL TRUSTEES,ALS003,03/09/2021,197297,1852,RENTAL LOCAL LINKS APR-JUNE21
Eden District Council,http://opendatacommunities.org/id/district-council/eden,Corporate Services Manager,Corporate Services,Alston Info Centre Cleaning to Recharge,ALSTON TOWN HALL TRUSTEES,ALS003,03/09/2021,197298,1852,RENTAL LOCAL LINKS JUL-SEP21
Eden District Council,http://opendatacommunities.org/id/district-council/eden,Commercial Services Manager,Economic Development and Promotion,Grants and contributions,G BOWMAN BUILDING CONTRACTORS LTD,BOW014,03/09/2021,197385,500,1st apprenticeship jb
Eden District Council,http://opendatacommunities.org/id/district-council/eden,Commercial Services Manager,Economic Development and Promotion,Grants and contributions,G BOWMAN BUILDING CONTRACTORS LTD,BOW014,03/09/2021,197402,1000,FINAL PAYMENT APPRENTICE SR
Eden District Council,http://opendatacommunities.org/id/district-council/eden,Technical Services Manager,Recycling,Garden Waste Skips,CUMBRIA WASTE RECYCLING LTD,CUM022,03/09/2021,197446,3640,SKIPS VARIOUS SITES
Eden District Council,http://opendatacommunities.org/id/district-council/eden,Technical Services Manager,Recycling,Recycling - Garden Waste,CUMBRIA WASTE RECYCLING LTD,CUM022,03/09/2021,197447,35483.81,CERT GW-4-21/22
Eden District Council,http://opendatacommunities.org/id/district-council/eden,Technical Services Manager,Land Charges,Professional fees,CUMBRIA COUNTY COUNCIL,CCC002,03/09/2021,197465,500,SEARCHES JUL21
Eden District Council,http://opendatacommunities.org/id/district-council/eden,Environmental Services,Appleby Fair,Other charges for services,COMPLETE EVENT SAFETY LTD,COM027,03/09/2021,197476,2745,DOOR SUPERVISORS
Eden District Council,http://opendatacommunities.org/id/district-council/eden,Environmental Services,Community Wardens,Dog Contract O.O.H retainer,URBASER LIMITED,URB002,03/09/2021,197370,970.81,STRAY DOG AUG 21
Eden District Council,http://opendatacommunities.org/id/district-council/eden,Commercial Services Manager,Town Centres,Grants and contributions,SHAP COMMUNITY CIO,SHA030,03/09/2021,197401,654,WELCOME BACK TO EDEN GRANT
Eden District Council,http://opendatacommunities.org/id/district-council/eden,Commercial Services Manager,Economic Development and Promotion,Other charges for services,PEOPLE AND PLACES INSIGHT LIMITED,PEO001,03/09/2021,197445,7000,BENCHMARKING
Eden District Council,http://opendatacommunities.org/id/district-council/eden,Technical Services Manager,Recycling,Bank-Refurbishment,AMEY PLC,TFE001,03/09/2021,197467,13584.65,CERT SC91
Eden District Council,http://opendatacommunities.org/id/district-council/eden,Technical Services Manager,Refuse Collection,Refuse Contract Dayworks,AMEY PLC,TFE001,03/09/2021,197468,5206.36,CERT RC101
Eden District Council,http://opendatacommunities.org/id/district-council/eden,Technical Services Manager,Refuse Collection,Refuse Contract Dayworks,URBASER LIMITED,URB002,03/09/2021,197471,1784.25,CERT RC104
Eden District Council,http://opendatacommunities.org/id/district-council/eden,Technical Services Manager,Recycling,Bank-Refurbishment,URBASER LIMITED,URB002,03/09/2021,197472,1988.95,CERT SC94
Eden District Council,http://opendatacommunities.org/id/district-council/eden,Commercial Services Manager,Commercial Services,Agency Staff,VIVID RESOURCING,VIV001,03/09/2021,197494,2750,TIME SHEET WE 25.8.21 GM
Eden District Council,http://opendatacommunities.org/id/district-council/eden,Environmental Services,Appleby Fair,Street Cleaning Contract,URBASER LIMITED,URB002,03/09/2021,197495,19004.92,CERT M-SC113
Eden District Council,http://opendatacommunities.org/id/district-council/eden,Technical Services Manager,Refuse Collection,Contract refuse collection,URBASER LIMITED,URB002,03/09/2021,197496,75733.44,CERT M-RC 113
Eden District Council,http://opendatacommunities.org/id/district-council/eden,Technical Services Manager,Recycling,Em Wks Storage,URBASER LIMITED,URB002,03/09/2021,197497,552.37,CERT M-M&EW 113/2021
Eden District Council,http://opendatacommunities.org/id/district-council/eden,Technical Services Manager,Land Management,Building works,BAKER MALLETT LLP,BAK010,03/09/2021,197301,880,PROJECT MANAGER 31.5.21-30.6.21
Eden District Council,http://opendatacommunities.org/id/district-council/eden,Commercial Services Manager,Commercial Services,Agency Staff,REDACTED INFORMATION,BAL010,03/09/2021,197332,866.5,ECO DEV TEAM SUPPORT JULY21
Eden District Council,http://opendatacommunities.org/id/district-council/eden,Environmental Services,1996 Mandatory Renovation Grants,Capital grants,PPM LTD,PPM001,03/09/2021,197361,4934.5,FIN PAYMENT GRANT REF200033
Eden District Council,http://opendatacommunities.org/id/district-council/eden,Environmental Services,1996 Mandatory Renovation Grants,Capital grants,TOP NOTCH CONTRACTORS LTD,TOP003,03/09/2021,197364,1132.67,INT PAYMENT GRANT REF 200066
Eden District Council,http://opendatacommunities.org/id/district-council/eden,Environmental Services,Home Improvement Agency,Professional fees,ANTHONY COLLINS SOLICITORS LLP,ANT007,03/09/2021,197368,5000,ADVICE CUMBRIAN CONSORTIUM
Eden District Council,http://opendatacommunities.org/id/district-council/eden,Environmental Services,1996 Mandatory Renovation Grants,Capital grants,PPM LTD,PPM001,03/09/2021,197375,5333,FIN PAYMENT GRANT REF 200058
Eden District Council,http://opendatacommunities.org/id/district-council/eden,Technical Services Manager,Provision of Ameneties,Litter bins,GLASDON UK LTD,GLA003,03/09/2021,197405,3762.67,TOPSY BINS
Eden District Council,http://opendatacommunities.org/id/district-council/eden,Commercial Services Manager,Markets,Promotions,AMEY PLC,TFE001,03/09/2021,197431,617.46,XMAS LIGHTS ERECT / REMOVAL
